[Event "Early-Titled-Tuesday-Blitz-August-29-2023"]
[Site "Chess.com"]
[Date "2023.08.29"]
[Round "6"]
[White "Roedor"]
[Black "CheckThis4"]
[Result "1/2-1/2"]
[WhiteElo "2430"]
[BlackElo "2656"]
[TimeControl "180+1"]
[EndTime "9:03:51 PDT"]
[Termination "Game drawn by repetition"]

1. d4 {[%clk 0:02:57]} 1... Nf6 {[%clk 0:02:59.5]} 2. c4 {[%clk 0:02:56.5]} 2...
e5 {[%clk 0:02:59.4]} 3. dxe5 {[%clk 0:02:55.9]} 3... Ng4 {[%clk 0:02:59.5]} 4.
Nf3 {[%clk 0:02:55.6]} 4... Bc5 {[%clk 0:02:57.8]} 5. e3 {[%clk 0:02:55.5]} 5...
Nc6 {[%clk 0:02:57.2]} 6. Nc3 {[%clk 0:02:56]} 6... O-O {[%clk 0:02:56.8]} 7.
Be2 {[%clk 0:02:56.1]} 7... Re8 {[%clk 0:02:56.7]} 8. O-O {[%clk 0:02:55.8]}
8... a5 {[%clk 0:02:56.5]} 9. Nd5 {[%clk 0:02:43.3]} 9... Bf8 {[%clk 0:02:38.8]}
10. b3 {[%clk 0:02:36.8]} 10... Ncxe5 {[%clk 0:02:36.4]} 11. Nxe5 {[%clk
0:02:36.6]} 11... Nxe5 {[%clk 0:02:35.9]} 12. f4 {[%clk 0:02:36.7]} 12... Nc6
{[%clk 0:02:31.7]} 13. Bb2 {[%clk 0:02:32.1]} 13... Nb4 {[%clk 0:02:28.7]} 14.
Bh5 {[%clk 0:02:14.8]} 14... Ra6 {[%clk 0:02:21.4]} 15. f5 {[%clk 0:02:07.5]}
15... Nxd5 {[%clk 0:02:15.8]} 16. Bxf7+ {[%clk 0:02:06.8]} 16... Kxf7 {[%clk
0:02:02.8]} 17. Qxd5+ {[%clk 0:02:04.9]} 17... Ke7 {[%clk 0:01:52]} 18. Qe5+
{[%clk 0:00:19.9]} 18... Kf7 {[%clk 0:01:49.9]} 19. Qd5+ {[%clk 0:00:20]} 19...
Ke7 {[%clk 0:01:48.9]} 20. Qe5+ {[%clk 0:00:20.4]} 20... Kf7 {[%clk 0:01:47.1]}
21. Qd5+ {[%clk 0:00:20.6]} 1/2-1/2

[Event "Early-Titled-Tuesday-Blitz-August-29-2023"]
[Site "Chess.com"]
[Date "2023.08.29"]
[Round "6"]
[White "superfast64"]
[Black "BlitzWizard04"]
[Result "1-0"]
[WhiteElo "2439"]
[BlackElo "2579"]
[TimeControl "180+1"]
[EndTime "9:03:56 PDT"]
[Termination "superfast64 won by resignation"]

1. d4 {[%clk 0:03:00.9]} 1... Nf6 {[%clk 0:03:00]} 2. Bf4 {[%clk 0:03:01.1]}
2... e6 {[%clk 0:03:00.4]} 3. e3 {[%clk 0:03:01.7]} 3... b6 {[%clk 0:03:01.1]}
4. Bd3 {[%clk 0:02:59.3]} 4... Bb7 {[%clk 0:03:01.6]} 5. Nf3 {[%clk 0:02:59.9]}
5... Be7 {[%clk 0:03:02.3]} 6. Nbd2 {[%clk 0:03:00.4]} 6... O-O {[%clk
0:03:02.7]} 7. c3 {[%clk 0:03:00.8]} 7... c5 {[%clk 0:03:03.2]} 8. O-O {[%clk
0:02:57.6]} 8... d6 {[%clk 0:03:02.5]} 9. a4 {[%clk 0:02:55.5]} 9... a6 {[%clk
0:03:02]} 10. h3 {[%clk 0:02:52.2]} 10... Nbd7 {[%clk 0:03:00.9]} 11. Bh2 {[%clk
0:02:49.4]} 11... Re8 {[%clk 0:03:01.1]} 12. Qe2 {[%clk 0:02:49.3]} 12... d5
{[%clk 0:02:58.3]} 13. Ne5 {[%clk 0:02:46.5]} 13... Nxe5 {[%clk 0:02:58.2]} 14.
Bxe5 {[%clk 0:02:38.5]} 14... Bd6 {[%clk 0:02:58.3]} 15. Bxd6 {[%clk 0:02:38.3]}
15... Qxd6 {[%clk 0:02:58.3]} 16. f4 {[%clk 0:02:38.9]} 16... c4 {[%clk
0:02:54.7]} 17. Bc2 {[%clk 0:02:38.6]} 17... b5 {[%clk 0:02:55.3]} 18. e4 {[%clk
0:02:35.8]} 18... dxe4 {[%clk 0:02:55.2]} 19. Nxe4 {[%clk 0:02:36.7]} 19... Nxe4
{[%clk 0:02:55.6]} 20. Bxe4 {[%clk 0:02:37.5]} 20... Bxe4 {[%clk 0:02:55.8]} 21.
Qxe4 {[%clk 0:02:38]} 21... b4 {[%clk 0:02:55.3]} 22. f5 {[%clk 0:02:33.2]}
22... bxc3 {[%clk 0:02:48.1]} 23. bxc3 {[%clk 0:02:19.7]} 23... Rab8 {[%clk
0:02:48.3]} 24. Rab1 {[%clk 0:02:04.8]} 24... Rb3 {[%clk 0:02:41.2]} 25. Rxb3
{[%clk 0:01:56.6]} 25... cxb3 {[%clk 0:02:41.1]} 26. fxe6 {[%clk 0:01:51.4]}
26... Rxe6 {[%clk 0:02:29.5]} 27. Qa8+ {[%clk 0:01:43.3]} 27... Qf8 {[%clk
0:02:29.6]} 28. Qxf8+ {[%clk 0:01:43]} 28... Kxf8 {[%clk 0:02:30.3]} 29. Rb1
{[%clk 0:01:42.6]} 29... Rb6 {[%clk 0:02:30.2]} 30. Kf2 {[%clk 0:01:40.8]} 30...
Ke7 {[%clk 0:02:30.8]} 31. Ke3 {[%clk 0:01:41.1]} 31... Kd7 {[%clk 0:02:28.5]}
32. Kd3 {[%clk 0:01:40.5]} 32... Rg6 {[%clk 0:02:29.2]} 33. Rb2 {[%clk
0:01:37.8]} 33... Kc6 {[%clk 0:02:26.6]} 34. Kc4 {[%clk 0:01:37.5]} 34... a5
{[%clk 0:02:25.8]} 35. Kxb3 {[%clk 0:01:28.2]} 35... Kd5 {[%clk 0:02:25.5]} 36.
Re2 {[%clk 0:01:27.5]} 36... Rb6+ {[%clk 0:02:25.7]} 37. Kc2 {[%clk 0:01:26.6]}
37... Kc4 {[%clk 0:02:01.5]} 38. Re5 {[%clk 0:01:24.6]} 38... Rc6 {[%clk
0:01:56.1]} 39. Rxa5 {[%clk 0:01:23.6]} 39... g6 {[%clk 0:01:52.8]} 40. g4
{[%clk 0:01:22.6]} 40... Rc8 {[%clk 0:01:50.3]} 41. g5 {[%clk 0:01:16.6]} 41...
Rc6 {[%clk 0:01:49.5]} 42. h4 {[%clk 0:01:14.8]} 42... Rc8 {[%clk 0:01:49.4]}
43. Re5 {[%clk 0:01:14.8]} 43... Rc7 {[%clk 0:01:47.6]} 44. a5 {[%clk
0:01:15.3]} 44... Rc8 {[%clk 0:01:46.8]} 45. a6 {[%clk 0:01:15.1]} 45... Rc7
{[%clk 0:01:47]} 46. a7 {[%clk 0:01:15.3]} 1-0

[Event "Early-Titled-Tuesday-Blitz-August-29-2023"]
[Site "Chess.com"]
[Date "2023.08.29"]
[Round "6"]
[White "Vesper2018"]
[Black "19912131712118"]
[Result "1-0"]
[WhiteElo "2603"]
[BlackElo "2436"]
[TimeControl "180+1"]
[EndTime "9:04:08 PDT"]
[Termination "Vesper2018 won by resignation"]

1. e4 {[%clk 0:03:00.9]} 1... c5 {[%clk 0:02:52.8]} 2. Nc3 {[%clk 0:03:00.6]}
2... Nc6 {[%clk 0:02:50.9]} 3. Bb5 {[%clk 0:02:59.9]} 3... Nd4 {[%clk 0:02:51]}
4. Bc4 {[%clk 0:03:00.1]} 4... e6 {[%clk 0:02:51.6]} 5. Nf3 {[%clk 0:03:00.1]}
5... a6 {[%clk 0:02:51.6]} 6. a4 {[%clk 0:02:59.8]} 6... Nf6 {[%clk 0:02:49.8]}
7. O-O {[%clk 0:02:54.1]} 7... Nxf3+ {[%clk 0:02:39.9]} 8. Qxf3 {[%clk
0:02:53.7]} 8... d6 {[%clk 0:02:40.5]} 9. Rd1 {[%clk 0:02:46.7]} 9... Nd7 {[%clk
0:02:36.2]} 10. Qg3 {[%clk 0:02:43.5]} 10... Ne5 {[%clk 0:02:31.9]} 11. Ba2
{[%clk 0:02:42.9]} 11... h5 {[%clk 0:02:29.9]} 12. f4 {[%clk 0:02:27.4]} 12...
h4 {[%clk 0:02:23.1]} 13. Qf2 {[%clk 0:02:23.8]} 13... Nc6 {[%clk 0:02:18.5]}
14. f5 {[%clk 0:02:19.2]} 14... exf5 {[%clk 0:02:16.6]} 15. exf5 {[%clk
0:02:18.6]} 15... Be7 {[%clk 0:02:16.8]} 16. Nd5 {[%clk 0:02:16.7]} 16... Bf6
{[%clk 0:02:08.3]} 17. Re1+ {[%clk 0:02:13.4]} 17... Kf8 {[%clk 0:02:08]} 18. c3
{[%clk 0:02:10.6]} 18... b5 {[%clk 0:02:02.3]} 19. d3 {[%clk 0:01:56.9]} 19...
Bb7 {[%clk 0:01:55.4]} 20. Bf4 {[%clk 0:01:51.1]} 20... Be5 {[%clk 0:01:44.6]}
21. Bxe5 {[%clk 0:01:39.9]} 21... Nxe5 {[%clk 0:01:43.3]} 22. Rxe5 {[%clk
0:01:40.1]} 22... dxe5 {[%clk 0:01:41.3]} 23. Qxc5+ {[%clk 0:01:40.3]} 23... Kg8
{[%clk 0:01:40.3]} 24. Ne7+ {[%clk 0:01:39.5]} 24... Kh7 {[%clk 0:01:39.6]} 25.
Bxf7 {[%clk 0:01:32.6]} 25... Rf8 {[%clk 0:01:39]} 26. Bg6+ {[%clk 0:01:31.8]}
26... Kh8 {[%clk 0:01:38.8]} 27. Qxe5 {[%clk 0:01:24.4]} 27... Qxd3 {[%clk
0:01:32.4]} 28. f6 {[%clk 0:01:06.2]} 28... Qxg6 {[%clk 0:01:06.8]} 29. Nxg6+
{[%clk 0:01:05.9]} 29... Kh7 {[%clk 0:01:06.8]} 30. Qh5+ {[%clk 0:01:05.3]} 1-0

[Event "Early-Titled-Tuesday-Blitz-August-29-2023"]
[Site "Chess.com"]
[Date "2023.08.29"]
[Round "6"]
[White "DanilNajdin"]
[Black "MatthewG-p4p"]
[Result "0-1"]
[WhiteElo "2563"]
[BlackElo "2846"]
[TimeControl "180+1"]
[EndTime "9:04:13 PDT"]
[Termination "MatthewG-p4p won by resignation"]

1. d4 {[%clk 0:03:00.9]} 1... Nf6 {[%clk 0:02:59.3]} 2. c4 {[%clk 0:03:01.1]}
2... c5 {[%clk 0:02:59.4]} 3. d5 {[%clk 0:03:01.2]} 3... e6 {[%clk 0:02:58.5]}
4. Nc3 {[%clk 0:03:01.7]} 4... exd5 {[%clk 0:02:58.7]} 5. cxd5 {[%clk
0:03:02.6]} 5... d6 {[%clk 0:02:59.4]} 6. e4 {[%clk 0:03:02.5]} 6... g6 {[%clk
0:02:59.9]} 7. h3 {[%clk 0:03:02.8]} 7... Bg7 {[%clk 0:03:00.4]} 8. Nf3 {[%clk
0:03:03.5]} 8... O-O {[%clk 0:03:01]} 9. Bd3 {[%clk 0:03:04.2]} 9... Nbd7 {[%clk
0:03:01.5]} 10. O-O {[%clk 0:03:01.3]} 10... Re8 {[%clk 0:03:01.8]} 11. Re1
{[%clk 0:02:58.9]} 11... Ne5 {[%clk 0:03:00.8]} 12. Be2 {[%clk 0:02:54.7]} 12...
Nxf3+ {[%clk 0:02:57.9]} 13. Bxf3 {[%clk 0:02:54.2]} 13... a6 {[%clk 0:02:58.7]}
14. a4 {[%clk 0:02:54]} 14... Nd7 {[%clk 0:02:58.2]} 15. Bf4 {[%clk 0:02:50.5]}
15... Ne5 {[%clk 0:02:58.2]} 16. Be2 {[%clk 0:02:50.8]} 16... Rb8 {[%clk
0:02:55.6]} 17. Bh2 {[%clk 0:02:48.6]} 17... Qc7 {[%clk 0:02:53.9]} 18. f4
{[%clk 0:02:39.5]} 18... Nd7 {[%clk 0:02:53.6]} 19. Bc4 {[%clk 0:02:27.1]} 19...
Nb6 {[%clk 0:02:39]} 20. Ba2 {[%clk 0:02:18.3]} 20... c4 {[%clk 0:02:38.2]} 21.
e5 {[%clk 0:01:57.8]} 21... Bf5 {[%clk 0:02:36.9]} 22. a5 {[%clk 0:01:31.4]}
22... Nd7 {[%clk 0:02:03.8]} 23. Ne4 {[%clk 0:01:29.3]} 23... dxe5 {[%clk
0:01:55.1]} 24. Rc1 {[%clk 0:01:01.2]} 24... exf4 {[%clk 0:01:47]} 25. Rxc4
{[%clk 0:00:56.3]} 25... Qxa5 {[%clk 0:01:47.1]} 26. Bxf4 {[%clk 0:00:55.8]}
26... Qxa2 {[%clk 0:01:42.9]} 27. Ra4 {[%clk 0:00:52.8]} 27... Qxb2 {[%clk
0:01:43.2]} 28. Bxb8 {[%clk 0:00:49]} 28... Rxb8 {[%clk 0:01:43.9]} 29. Nd6
{[%clk 0:00:40.6]} 29... Qb6+ {[%clk 0:01:43.1]} 0-1

[Event "Early-Titled-Tuesday-Blitz-August-29-2023"]
[Site "Chess.com"]
[Date "2023.08.29"]
[Round "6"]
[White "AdvanceGuard4"]
[Black "Alexander_Donchenko"]
[Result "1-0"]
[WhiteElo "2642"]
[BlackElo "2840"]
[TimeControl "180+1"]
[EndTime "9:04:15 PDT"]
[Termination "AdvanceGuard4 won by resignation"]

1. d4 {[%clk 0:03:00.9]} 1... Nf6 {[%clk 0:03:00]} 2. Nf3 {[%clk 0:03:00.5]}
2... g6 {[%clk 0:03:00.2]} 3. g3 {[%clk 0:03:00.1]} 3... Bg7 {[%clk 0:03:00.8]}
4. Bg2 {[%clk 0:03:00.8]} 4... b6 {[%clk 0:03:01.1]} 5. O-O {[%clk 0:03:01.7]}
5... Bb7 {[%clk 0:03:01.7]} 6. c4 {[%clk 0:03:02.2]} 6... O-O {[%clk 0:03:02.2]}
7. Nc3 {[%clk 0:03:01.6]} 7... Ne4 {[%clk 0:03:02.5]} 8. Bd2 {[%clk 0:03:00.5]}
8... d6 {[%clk 0:03:02.2]} 9. Rc1 {[%clk 0:02:58.4]} 9... Nd7 {[%clk 0:03:01.7]}
10. d5 {[%clk 0:02:58.2]} 10... Nxd2 {[%clk 0:03:00.4]} 11. Qxd2 {[%clk
0:02:58.3]} 11... e5 {[%clk 0:02:51.2]} 12. dxe6 {[%clk 0:02:43.4]} 12... fxe6
{[%clk 0:02:52.1]} 13. Nd4 {[%clk 0:02:43.3]} 13... Bxg2 {[%clk 0:02:52.2]} 14.
Kxg2 {[%clk 0:02:30.2]} 14... Qf6 {[%clk 0:02:47.2]} 15. Ndb5 {[%clk 0:02:14.7]}
15... Ne5 {[%clk 0:02:35.1]} 16. b3 {[%clk 0:01:47.7]} 16... Rf7 {[%clk
0:02:29.8]} 17. f4 {[%clk 0:01:40.2]} 17... Nc6 {[%clk 0:02:20.8]} 18. Ne4
{[%clk 0:01:38.6]} 18... Qf5 {[%clk 0:02:14]} 19. Ng5 {[%clk 0:01:38.5]} 19...
Re7 {[%clk 0:02:10.5]} 20. e4 {[%clk 0:01:35.3]} 20... Qc5 {[%clk 0:02:10.4]}
21. Nxc7 {[%clk 0:01:13.3]} 21... Rc8 {[%clk 0:01:51.6]} 22. Ncxe6 {[%clk
0:01:10]} 22... Qa3 {[%clk 0:01:45]} 23. Nxg7 {[%clk 0:00:59]} 23... Kxg7 {[%clk
0:01:45.9]} 24. f5 {[%clk 0:00:54.2]} 24... Rf8 {[%clk 0:01:42.3]} 25. Ne6+
{[%clk 0:00:47.4]} 25... Rxe6 {[%clk 0:01:41.7]} 26. fxe6 {[%clk 0:00:48.3]}
26... Re8 {[%clk 0:01:38.8]} 27. Rf7+ {[%clk 0:00:47.3]} 27... Kg8 {[%clk
0:01:39.1]} 28. Qh6 {[%clk 0:00:39.7]} 28... Qb2+ {[%clk 0:01:36.5]} 29. Kh3
{[%clk 0:00:40.1]} 29... Qh8 {[%clk 0:01:37.2]} 30. Rcf1 {[%clk 0:00:38.4]} 1-0

[Event "Early-Titled-Tuesday-Blitz-August-29-2023"]
[Site "Chess.com"]
[Date "2023.08.29"]
[Round "6"]
[White "sokidze"]
[Black "brm72"]
[Result "1/2-1/2"]
[WhiteElo "2760"]
[BlackElo "2555"]
[TimeControl "180+1"]
[EndTime "9:04:17 PDT"]
[Termination "Game drawn by agreement"]

1. e4 {[%clk 0:03:00.7]} 1... c5 {[%clk 0:02:59.4]} 2. Nf3 {[%clk 0:02:59.7]}
2... Nc6 {[%clk 0:02:59.7]} 3. Bb5 {[%clk 0:02:58.2]} 3... e5 {[%clk 0:03:00]}
4. O-O {[%clk 0:02:56.4]} 4... Nge7 {[%clk 0:02:59.8]} 5. c3 {[%clk 0:02:51.3]}
5... g6 {[%clk 0:02:59.4]} 6. d4 {[%clk 0:02:49.6]} 6... exd4 {[%clk 0:02:59.8]}
7. cxd4 {[%clk 0:02:49.8]} 7... cxd4 {[%clk 0:03:00.5]} 8. Nxd4 {[%clk
0:02:40.1]} 8... Bg7 {[%clk 0:03:00.4]} 9. Be3 {[%clk 0:02:40.6]} 9... O-O
{[%clk 0:03:00.3]} 10. Nc3 {[%clk 0:02:40.9]} 10... d5 {[%clk 0:03:00]} 11. Bxc6
{[%clk 0:02:28.4]} 11... bxc6 {[%clk 0:02:54.3]} 12. exd5 {[%clk 0:02:26.4]}
12... Nxd5 {[%clk 0:02:54.5]} 13. Nxc6 {[%clk 0:01:37.8]} 13... Nxe3 {[%clk
0:02:50.6]} 14. Qxd8 {[%clk 0:01:30]} 14... Rxd8 {[%clk 0:02:48.7]} 15. fxe3
{[%clk 0:01:29.9]} 15... Re8 {[%clk 0:02:22.5]} 16. Rfe1 {[%clk 0:01:04.1]}
16... Bd7 {[%clk 0:02:15.8]} 17. Na5 {[%clk 0:00:58.2]} 17... Rab8 {[%clk
0:01:56.4]} 18. Nb3 {[%clk 0:00:52.3]} 18... a5 {[%clk 0:01:56.3]} 19. Rad1
{[%clk 0:00:45]} 19... Be6 {[%clk 0:01:52.7]} 20. Nd5 {[%clk 0:00:29.8]} 20...
a4 {[%clk 0:01:43.1]} 21. Nc5 {[%clk 0:00:28.5]} 21... Bxd5 {[%clk 0:01:34]} 22.
Rxd5 {[%clk 0:00:27.8]} 22... Rxb2 {[%clk 0:01:33.8]} 23. Nxa4 {[%clk
0:00:26.7]} 23... Rxa2 {[%clk 0:01:33.7]} 1/2-1/2

[Event "Early-Titled-Tuesday-Blitz-August-29-2023"]
[Site "Chess.com"]
[Date "2023.08.29"]
[Round "6"]
[White "CrazyAdvenTures"]
[Black "HansOnTwitch"]
[Result "0-1"]
[WhiteElo "2688"]
[BlackElo "2914"]
[TimeControl "180+1"]
[EndTime "9:04:29 PDT"]
[Termination "HansOnTwitch won by resignation"]

1. e4 {[%clk 0:03:00.9]} 1... c5 {[%clk 0:02:59]} 2. Nc3 {[%clk 0:02:59.9]} 2...
Nc6 {[%clk 0:02:58.8]} 3. Bb5 {[%clk 0:02:58.2]} 3... Nd4 {[%clk 0:02:59.4]} 4.
Nf3 {[%clk 0:02:57.4]} 4... e6 {[%clk 0:02:59.6]} 5. O-O {[%clk 0:02:57.1]} 5...
a6 {[%clk 0:02:59.2]} 6. Bd3 {[%clk 0:02:57.1]} 6... Nc6 {[%clk 0:02:59.9]} 7.
b3 {[%clk 0:02:54.8]} 7... g5 {[%clk 0:02:59.7]} 8. Bb2 {[%clk 0:02:52.3]} 8...
Bg7 {[%clk 0:03:00.2]} 9. Na4 {[%clk 0:02:21]} 9... Bxb2 {[%clk 0:02:56.3]} 10.
Nxb2 {[%clk 0:02:21.9]} 10... g4 {[%clk 0:02:50]} 11. Ne1 {[%clk 0:02:21.3]}
11... h5 {[%clk 0:02:42.2]} 12. f4 {[%clk 0:01:43.8]} 12... d6 {[%clk
0:02:28.8]} 13. Nc4 {[%clk 0:01:34.8]} 13... b5 {[%clk 0:02:23.9]} 14. Ne3
{[%clk 0:01:35.1]} 14... Nf6 {[%clk 0:02:23.4]} 15. c3 {[%clk 0:01:32.5]} 15...
Bb7 {[%clk 0:02:19.4]} 16. Kh1 {[%clk 0:01:05]} 16... Ne7 {[%clk 0:02:13.6]} 17.
Qc2 {[%clk 0:00:44.4]} 17... Qc7 {[%clk 0:02:08.7]} 18. a4 {[%clk 0:00:43.5]}
18... Qc6 {[%clk 0:02:01.5]} 19. e5 {[%clk 0:00:22.2]} 19... dxe5 {[%clk
0:02:00.6]} 20. fxe5 {[%clk 0:00:23]} 20... Nd7 {[%clk 0:02:00.7]} 21. axb5
{[%clk 0:00:15.4]} 21... axb5 {[%clk 0:02:00.4]} 22. Rxa8+ {[%clk 0:00:09.7]}
22... Bxa8 {[%clk 0:02:01.3]} 23. Qa2 {[%clk 0:00:10]} 23... O-O {[%clk
0:01:53]} 24. Qa5 {[%clk 0:00:09.3]} 24... Rb8 {[%clk 0:01:49.1]} 25. Qa7 {[%clk
0:00:09]} 25... Bb7 {[%clk 0:01:41.7]} 26. N1c2 {[%clk 0:00:05.4]} 26... Ra8
{[%clk 0:01:40.4]} 0-1

[Event "Early-Titled-Tuesday-Blitz-August-29-2023"]
[Site "Chess.com"]
[Date "2023.08.29"]
[Round "6"]
[White "Vaibhavraut99"]
[Black "salzikis"]
[Result "1-0"]
[WhiteElo "2568"]
[BlackElo "2416"]
[TimeControl "180+1"]
[EndTime "9:04:41 PDT"]
[Termination "Vaibhavraut99 won by resignation"]

1. Nf3 {[%clk 0:03:00.9]} 1... Nf6 {[%clk 0:02:59.7]} 2. g3 {[%clk 0:03:00.8]}
2... d5 {[%clk 0:02:57.8]} 3. Bg2 {[%clk 0:03:00.8]} 3... Nc6 {[%clk 0:02:52.4]}
4. d4 {[%clk 0:03:00.1]} 4... Bf5 {[%clk 0:02:52.2]} 5. c4 {[%clk 0:03:00.1]}
5... e6 {[%clk 0:02:51.9]} 6. Nc3 {[%clk 0:03:00]} 6... h6 {[%clk 0:02:52.2]} 7.
O-O {[%clk 0:02:59.7]} 7... Be7 {[%clk 0:02:46]} 8. Ne5 {[%clk 0:02:59.4]} 8...
O-O {[%clk 0:02:40.4]} 9. Nxc6 {[%clk 0:02:56.5]} 9... bxc6 {[%clk 0:02:40.1]}
10. c5 {[%clk 0:02:57.2]} 10... e5 {[%clk 0:02:37.7]} 11. dxe5 {[%clk
0:02:54.3]} 11... Ng4 {[%clk 0:02:37.8]} 12. e4 {[%clk 0:02:52.3]} 12... dxe4
{[%clk 0:02:32.4]} 13. Nxe4 {[%clk 0:02:51.7]} 13... Nxe5 {[%clk 0:02:29.5]} 14.
Bf4 {[%clk 0:02:41]} 14... Ng6 {[%clk 0:02:25]} 15. Qxd8 {[%clk 0:02:38.7]}
15... Bxd8 {[%clk 0:02:25.1]} 16. Be3 {[%clk 0:02:35.1]} 16... Rb8 {[%clk
0:02:25.7]} 17. b3 {[%clk 0:02:31.4]} 17... Ne7 {[%clk 0:02:22.2]} 18. Nc3
{[%clk 0:02:28.7]} 18... Ng6 {[%clk 0:02:03.1]} 19. Bxc6 {[%clk 0:02:22.7]}
19... Bf6 {[%clk 0:02:03.2]} 20. Rac1 {[%clk 0:02:22.5]} 20... Ne5 {[%clk
0:02:03.6]} 21. Be4 {[%clk 0:02:17.1]} 21... Nd3 {[%clk 0:02:00.7]} 22. Bxf5
{[%clk 0:02:15.1]} 22... Nxc1 {[%clk 0:01:55.2]} 23. Rxc1 {[%clk 0:02:16]} 23...
Rfd8 {[%clk 0:01:50.2]} 24. Bf4 {[%clk 0:02:07.9]} 24... Bxc3 {[%clk 0:01:19.5]}
25. Rxc3 {[%clk 0:02:04.5]} 25... Rd5 {[%clk 0:01:19.3]} 26. Be4 {[%clk
0:01:51.3]} 26... Rd7 {[%clk 0:01:16]} 27. c6 {[%clk 0:01:48.7]} 27... Re7
{[%clk 0:01:15.7]} 28. Bf5 {[%clk 0:01:48]} 28... g5 {[%clk 0:01:15.9]} 29. Be3
{[%clk 0:01:46.3]} 29... a6 {[%clk 0:01:13.6]} 30. Bd7 {[%clk 0:01:45.8]} 30...
Rb5 {[%clk 0:01:11]} 31. Rc4 {[%clk 0:01:42.3]} 31... f6 {[%clk 0:01:09.1]} 32.
Bc5 {[%clk 0:01:34.7]} 32... Re5 {[%clk 0:01:08.2]} 33. b4 {[%clk 0:01:30.9]}
33... a5 {[%clk 0:01:03.7]} 34. a4 {[%clk 0:01:29.1]} 34... Rb8 {[%clk
0:01:02.4]} 35. b5 {[%clk 0:01:24.8]} 35... Kf7 {[%clk 0:01:00.9]} 36. b6 {[%clk
0:01:24.4]} 36... Re1+ {[%clk 0:00:51.4]} 37. Kg2 {[%clk 0:01:23.8]} 37... cxb6
{[%clk 0:00:51.4]} 38. Bd6 {[%clk 0:01:22.5]} 1-0

[Event "Early-Titled-Tuesday-Blitz-August-29-2023"]
[Site "Chess.com"]
[Date "2023.08.29"]
[Round "6"]
[White "ajedrezhoy"]
[Black "mapleaff"]
[Result "0-1"]
[WhiteElo "2425"]
[BlackElo "2303"]
[TimeControl "180+1"]
[EndTime "9:04:48 PDT"]
[Termination "mapleaff won by resignation"]

1. c4 {[%clk 0:01:39.9]} 1... e6 {[%clk 0:02:59.5]} 2. Nf3 {[%clk 0:01:37.1]}
2... Nf6 {[%clk 0:02:59.4]} 3. e3 {[%clk 0:01:36.3]} 3... d5 {[%clk 0:02:59.9]}
4. b3 {[%clk 0:01:34.6]} 4... b6 {[%clk 0:02:58.9]} 5. Bb2 {[%clk 0:01:33.4]}
5... Bb7 {[%clk 0:02:59.2]} 6. Nc3 {[%clk 0:01:30.7]} 6... Be7 {[%clk
0:02:57.5]} 7. d4 {[%clk 0:01:28.3]} 7... O-O {[%clk 0:02:54]} 8. Be2 {[%clk
0:01:24.6]} 8... c5 {[%clk 0:02:47.3]} 9. O-O {[%clk 0:01:23.8]} 9... cxd4
{[%clk 0:02:44.3]} 10. Nxd4 {[%clk 0:01:19.8]} 10... dxc4 {[%clk 0:02:39.6]} 11.
Bxc4 {[%clk 0:01:18.8]} 11... Nc6 {[%clk 0:02:39]} 12. Ba6 {[%clk 0:01:00.7]}
12... Bxa6 {[%clk 0:02:16.9]} 13. Nxc6 {[%clk 0:01:00.6]} 13... Qc7 {[%clk
0:02:17.8]} 14. Nxe7+ {[%clk 0:01:00.2]} 14... Qxe7 {[%clk 0:02:18.7]} 15. Re1
{[%clk 0:00:59.6]} 15... Rfd8 {[%clk 0:02:17.4]} 16. Qf3 {[%clk 0:00:56.4]}
16... Bb7 {[%clk 0:02:16.5]} 17. Qg3 {[%clk 0:00:56.3]} 17... Nh5 {[%clk
0:02:12.8]} 18. Qg4 {[%clk 0:00:53.6]} 18... Nf6 {[%clk 0:02:12]} 19. Qh4 {[%clk
0:00:51.5]} 19... Rd2 {[%clk 0:02:04.6]} 20. Rab1 {[%clk 0:00:34.5]} 20... Rc8
{[%clk 0:01:55.8]} 21. Na4 {[%clk 0:00:32.4]} 21... Rcc2 {[%clk 0:01:49.2]} 22.
Rf1 {[%clk 0:00:27.6]} 22... b5 {[%clk 0:01:31.1]} 23. Bxf6 {[%clk 0:00:26.3]}
23... Qxf6 {[%clk 0:01:32]} 24. Qg3 {[%clk 0:00:20.2]} 24... bxa4 {[%clk
0:01:25.5]} 25. Qb8+ {[%clk 0:00:19.9]} 25... Bc8 {[%clk 0:01:25.4]} 26. Qxa7
{[%clk 0:00:19.9]} 26... axb3 {[%clk 0:01:22.2]} 27. Rxb3 {[%clk 0:00:17.8]}
27... Rxf2 {[%clk 0:01:20]} 0-1

[Event "Early-Titled-Tuesday-Blitz-August-29-2023"]
[Site "Chess.com"]
[Date "2023.08.29"]
[Round "6"]
[White "wqws"]
[Black "Reader777"]
[Result "1-0"]
[WhiteElo "2675"]
[BlackElo "2869"]
[TimeControl "180+1"]
[EndTime "9:04:54 PDT"]
[Termination "wqws won by resignation"]

1. e4 {[%clk 0:03:00.9]} 1... c5 {[%clk 0:02:59]} 2. Nf3 {[%clk 0:03:00.9]} 2...
d6 {[%clk 0:02:56.9]} 3. d4 {[%clk 0:03:01.5]} 3... cxd4 {[%clk 0:02:57.8]} 4.
Nxd4 {[%clk 0:03:02.4]} 4... Nf6 {[%clk 0:02:58.4]} 5. Nc3 {[%clk 0:03:02.8]}
5... a6 {[%clk 0:02:59.1]} 6. Bg5 {[%clk 0:03:03.2]} 6... Nbd7 {[%clk 0:02:59]}
7. Bc4 {[%clk 0:03:02.8]} 7... Qb6 {[%clk 0:02:58.5]} 8. Bb3 {[%clk 0:03:02]}
8... e6 {[%clk 0:02:58.9]} 9. Qd2 {[%clk 0:03:01.9]} 9... Be7 {[%clk 0:02:59.5]}
10. O-O-O {[%clk 0:03:01.6]} 10... Nc5 {[%clk 0:02:59.7]} 11. Rhe1 {[%clk
0:03:00.9]} 11... Qc7 {[%clk 0:02:59.8]} 12. f4 {[%clk 0:02:58.4]} 12... h6
{[%clk 0:02:59.6]} 13. Bh4 {[%clk 0:02:57.8]} 13... Nfxe4 {[%clk 0:02:45.2]} 14.
Nxe4 {[%clk 0:02:52.6]} 14... Nxe4 {[%clk 0:02:39.4]} 15. Rxe4 {[%clk
0:02:50.3]} 15... Bxh4 {[%clk 0:02:38.5]} 16. Nf5 {[%clk 0:02:49.7]} 16... Be7
{[%clk 0:02:30.4]} 17. Nxg7+ {[%clk 0:02:20]} 17... Kf8 {[%clk 0:02:26.5]} 18.
Nxe6+ {[%clk 0:02:08.4]} 18... fxe6 {[%clk 0:02:24.5]} 19. Bxe6 {[%clk
0:02:09.3]} 19... Bxe6 {[%clk 0:02:02.8]} 20. Rxe6 {[%clk 0:02:10.2]} 20... Re8
{[%clk 0:02:01.3]} 21. Rde1 {[%clk 0:02:08.9]} 21... Qc4 {[%clk 0:01:43.4]} 22.
Kb1 {[%clk 0:01:47.4]} 22... Rh7 {[%clk 0:01:30.2]} 23. f5 {[%clk 0:01:44.2]}
23... Rc8 {[%clk 0:01:19.5]} 24. f6 {[%clk 0:01:38.3]} 24... Bd8 {[%clk
0:00:49.4]} 25. Qxd6+ {[%clk 0:01:35.8]} 25... Kf7 {[%clk 0:00:49.5]} 26. Qd7+
{[%clk 0:01:24]} 26... Kg6 {[%clk 0:00:49.4]} 27. Qe8+ {[%clk 0:01:11.2]} 27...
Rf7 {[%clk 0:00:43.3]} 28. Qg8+ {[%clk 0:01:03.7]} 28... Kf5 {[%clk 0:00:43]}
29. g4+ {[%clk 0:01:03.2]} 29... Kf4 {[%clk 0:00:42.3]} 30. R6e4+ {[%clk
0:00:59.8]} 30... Qxe4 {[%clk 0:00:40.8]} 31. Rxe4+ {[%clk 0:01:00.7]} 31...
Kxe4 {[%clk 0:00:40.8]} 32. Qxf7 {[%clk 0:01:01]} 1-0